Cogmind - Beta 16 @@@ ROGUE MODE // 2026.01.19 @ 22:29:26 Player: Foolatea Result: Destroyed by G-50 Soldier with Heavy Laser Performance ------------- Evolutions (4) 2000 Regions Visited (11) 2200 Robots Destroyed (160) 800 Value Destroyed (4153) 4153 Prototype IDs (17) 340 Alien Tech Used (0) 0 Bonus (345) 345 TOTAL SCORE: 9838 Bonus ------- High Alert Combat Kills 51 Met Data Miner 300 Friendly Fire -6 Cogmind --------- Core Integrity 0/850 Matter 280/300 Energy 34/100 System Corruption 1% Temperature Cool (19) Movement Flying (40) Location -6/Factory Parts ------- > --- POWER (1) -------- (None) > --- PROPULSION (4) --- Nuclear Pulse Thruster > --- UTILITY (8) ------ (None) > --- WEAPON (2) ------- (None) > --- INVENTORY (5) ---- Advanced Terrain Scan Processor Launcher Guidance Computer Cloaking Device System Restoration Module Heavy Rocket Launcher Peak State ------------ > --- POWER ------------ Cooled Ion Engine > --- PROPULSION ------- Advanced Treads Medium Treads Medium Treads Wheel > --- UTILITY ---------- High-capacity Storage Unit Advanced Weight Redist. System Machine Analyzer Improved Signal Interpreter Transmission Jammer Improved Medium Armor Plating Hacking Suite Makeshift Hacking Suite > --- WEAPON ----------- Heavy Ion Cannon Precision Assault Rifle > --- INVENTORY -------- Improved Deuterium Engine Angular Momentum Engine Wheel Compact Wheel Coolant Injector Advanced Terrain Scan Processor Launcher Guidance Computer Improved Particle Charger Transmission Jammer Improved Medium Armor Plating System Restoration Module Cooled Particle Cannon Advanced EMP Blaster Heavy Rocket Launcher Heavy Missile Launcher Remote Datajack Katana DRS Beacon [Rating: 56] Favorites ----------- Power Cooled Ion Engine Engine Cooled Ion Engine Power Core Light Nuclear Core Propulsion Wheel Treads Advanced Treads Leg Improved Carbon-fiber Leg Wheel Wheel Flight Unit Nuclear Pulse Thruster Utility High-capacity Storage Unit Device Improved Sensor Array Storage High-capacity Storage Unit Processor Improved Signal Interpreter Hackware Hacking Suite Protection Improved Medium Armor Plating Weapon Heavy Ion Cannon Energy Gun Heavy Particle Gun Energy Cannon Heavy Ion Cannon Ballistic Gun Assault Rifle Ballistic Cannon Assault Cannon Launcher Advanced EMP Blaster Special Weapon Remote Datajack Impact Weapon Heavy Flail Slashing Weapon Katana Build | -11 -10 -10 -8 -7 -7 -7 -7 -7 -7 -6 -6 ------- Run | Yrd Mat Sub Mat Fac Was Fac Low Low Dat Pro Fac Slots Evolved 8 | . . . 4 2 . . . . . . 2 Power . | . . . . . . . . . . . . Propulsion 2 | . . . 2 . . . . . . . . Utility 6 | . . . 2 2 . . . . . . 2 Weapon . | . . . . . . . . . . . . Parts Attached 105 | 7 13 1 28 9 4 26 . . . 2 15 Power 12 | 1 2 . 4 . . 5 . . . . . Engine 11 | 1 2 . 3 . . 5 . . . . . Core 1 | . . . 1 . . . . . . . . Reactor . | . . . . . . . . . . . . Propulsion 35 | 2 5 1 5 2 1 11 . . . . 8 Treads 10 | 1 3 . 2 . . 2 . . . . 2 Leg 2 | . . . . . . . . . . . 2 Wheel 22 | 1 2 1 3 2 1 9 . . . . 3 Hover . | . . . . . . . . . . . . Flight 1 | . . . . . . . . . . . 1 Utility 31 | 2 3 . 7 4 1 6 . . . 2 6 Device 13 | 1 . . 4 2 . 2 . . . 1 3 Storage 4 | 1 3 . . . . . . . . . . Processor 4 | . . . 1 1 1 1 . . . . . Hackware 2 | . . . . . . . . . . . 2 Protection 8 | . . . 2 1 . 3 . . . 1 1 Artifact . | . . . . . . . . . . . . Weapon 27 | 2 3 . 12 3 2 4 . . . . 1 Energy Gun 6 | 1 . . 5 . . . . . . . . Energy Cannon 6 | . . . 2 1 . 2 . . . . 1 Ballistic Gun 4 | 1 2 . . . . 1 . . . . . Ballistic Cannon 1 | . . . 1 . . . . . . . . Launcher 5 | . . . 3 . 2 . . . . . . Special Weapon 1 | . . . . 1 . . . . . . . Impact Weapon 2 | . . . 1 1 . . . . . . . Slashing Weapon 2 | . 1 . . . . 1 . . . . . Piercing Weapon . | . . . . . . . . . . . . Special Melee Weapon . | . . . . . . . . . . . . Unidentified Prototypes 7 | . . . 4 . . 3 . . . . . Parts Lost 40 | . 2 4 . 3 1 10 . . . 4 16 Power 4 | . 1 . . . . 2 . . . . 1 Propulsion 18 | . . 2 . 2 . 6 . . . 2 6 Utility 13 | . . . . 1 1 2 . . . 2 7 Weapon 5 | . 1 2 . . . . . . . . 2 Highest Loss Streak 5 | . 1 3 . 1 1 3 . . . 4 5 To Critical Strikes . | . . . . . . . . . . . . Average Backups 16 | 4 12 19 18 19 18 18 19 19 19 18 12 Power 1 | . 1 3 1 1 1 1 1 1 1 1 1 Propulsion 2 | 2 5 7 3 2 1 . . 1 2 2 . Utility 7 | . 3 6 7 10 10 7 10 9 9 8 5 Weapon 5 | . 2 3 4 5 5 7 6 6 6 5 4 Tool/Special . | . . . . . . . . . . . . Unused Backups 26 | . 2 . 7 3 1 4 1 . . . 8 Power 7 | . . . 3 . . 2 . . . . 2 Propulsion 2 | . . . 2 . . . . . . . . Utility 15 | . 1 . 1 3 1 2 1 . . . 6 Weapon 2 | . 1 . 1 . . . . . . . . Tool/Special . | . . . . . . . . . . . . Average Slot Usage (%) 93 | . 99 90 97 95 91 93 100 100 92 89 73 Engine 8 | . 13 14 8 7 7 6 7 7 7 7 4 Treads 9 | . 13 4 19 10 3 2 7 7 7 7 10 Wheel 18 | . 14 24 16 16 26 22 23 23 23 19 5 Device 10 | . 14 14 14 14 7 8 7 7 7 6 9 Storage 8 | . 14 14 9 7 7 7 7 7 7 7 4 Processor 13 | . . . 5 15 18 19 23 23 23 21 10 Protection 5 | . . . 4 6 3 7 7 7 7 7 4 Energy Gun 1 | . 1 . 6 . . . . . . . . Energy Cannon 4 | . . . 2 10 10 8 5 12 . . 1 Ballistic Gun 5 | . 22 19 . . . . 7 . . . 3 Impact Weapon 1 | . . . 2 2 . 1 . . . . . Slashing Weapon 2 | . 3 . . . . 2 1 1 7 6 3 Peak Build Rating 56 | 8 9 9 35 41 40 44 42 42 37 41 56 Average Rating 31 | 5 8 8 26 38 35 38 41 41 37 37 40 On Entrance 27 | . 8 9 7 35 38 32 42 42 41 37 39 Avg Prop Armor Cover (%) 10 | 12 9 11 17 10 7 10 7 7 9 8 16 Naked Turns 185 | . . . . . . . . . . . 185 Heaviest Build 88 | 13 88 50 73 75 72 79 68 72 58 71 79 Greatest Support 48 | 10 20 20 28 32 42 48 36 36 36 36 42 Greatest Overweight (x) 8 | 1 8 4 3 7 3 3 1 1 1 3 7 Average Overweight (x) 1 | . 2 2 2 2 1 1 1 1 1 1 1 Largest Inventory Capacity 25 | 8 25 20 20 20 20 20 20 20 20 20 20 Average Capacity 18 | 6 16 20 20 20 20 20 20 20 20 20 16 Most Carried 20 | 8 20 20 20 20 20 20 20 20 20 20 18 Average Carried 17 | 4 12 19 18 19 18 18 19 20 20 19 12 Final Capacity 20 | 8 20 20 20 20 20 20 20 20 20 20 5 Final Carried 20 | 8 20 18 20 20 18 20 20 20 20 17 5 Class Distribution -------------------- 34% | Mutant 28% | Skirmisher 18% | Assassin 8% | Scavenger-Mutant 4% | Hacker-Mutant 3% | Scavenger-Assassin Dominant Class ---------------- Mutant | -10/Materials Mutant | -10/Subcaves Mutant | -8/Materials Skirmisher | -7/Factory Skirmisher | -7/Waste Skirmisher | -7/Factory Skirmisher | -7/Lower Caves Skirmisher | -7/Lower Caves Assassin | -7/Data Miner Assassin | -6/Proximity Caves Hacker-Mutant | -6/Factory Resources | -11 -10 -10 -8 -7 -7 -7 -7 -7 -7 -6 -6 ----------- Run | Yrd Mat Sub Mat Fac Was Fac Low Low Dat Pro Fac Matter Collected 3588 | 335 709 . 715 237 100 752 184 73 . 11 472 Remotely . | . . . . . . . . . . . . Salvage Created 7085 | 182 705 . 1291 561 734 1868 414 266 . 195 869 Parts 331 | 15 48 . 75 24 8 92 15 8 . 4 42 Haulers Intercepted 8 | . 2 . 3 . . 2 . . . . 1 Recyclers Shooed 7 | . 2 . . . . 1 . . . . 4 Parts Field Recycled . | . . . . . . . . . . . . Retrieved Matter . | . . . . . . . . . . . . Parts Self-Destructed 24 | . . 2 . . . . 13 9 . . . Prevented 7 | . . . . . . . 7 . . . . Parts Restored . | . . . . . . . . . . . . Kills | -11 -10 -10 -8 -7 -7 -7 -7 -7 -7 -6 -6 ------- Run | Yrd Mat Sub Mat Fac Was Fac Low Low Dat Pro Fac Combat Hostiles Destroyed 91 | . 14 . 24 9 3 21 6 4 . 3 7 Melee 1 | . . . . . . 1 . . . . . Guns 22 | . 14 . 4 . . . 3 . . . 1 Cannons 33 | . . . 4 6 . 16 1 1 . . 5 AOE 35 | . . . 16 3 3 4 2 3 . 3 1 Classes Destroyed 14 | 3 4 . 4 1 1 . 1 . . . . Worker 20 | 2 2 . 4 2 . 8 . . . . 2 Builder 13 | . 1 . 1 . . 10 . . . . 1 Tunneler 10 | 6 . . 1 . . 1 . . . . 2 Hauler 8 | . 2 . 3 . . 2 . . . . 1 Recycler 13 | 1 2 . . 2 . 6 . . . . 2 Operator 1 | . . . 1 . . . . . . . . Watcher 4 | . . . 2 1 . 1 . . . . . Swarmer 28 | . 6 . 6 4 . 8 . 2 . . 2 Grunt 42 | . 8 . 13 4 . 5 4 2 . 3 3 Brawler 2 | . . . . . . . 2 . . . . Sentry 7 | . . . 4 . . 3 . . . . . Hunter 2 | . . . 1 . . . . . . . 1 Programmer 7 | . . . . 1 . 5 . . . . 1 Compactor 3 | . . . . . 3 . . . . . . Packrat 2 | . . . . . . . . . . 2 . Best Kill Streak 7 | 4 4 . 7 6 2 6 5 4 . 3 3 Combat Bots Only 6 | . 3 . 6 4 2 5 5 4 . 3 3 Max Kills in Single Turn 5 | 1 1 . 4 2 2 5 1 2 . 2 1 Gunslinging . | . . . . . . . . . . . . Exploded 4 | . . . 4 1 2 4 1 2 . 2 1 Melee 1 | . . . . . . 1 . . . . . Uniques/NPCs Destroyed . | . . . . . . . . . . . . Combat | -11 -10 -10 -8 -7 -7 -7 -7 -7 -7 -6 -6 -------- Run | Yrd Mat Sub Mat Fac Was Fac Low Low Dat Pro Fac Hostile Shots Fired 735 | . 95 13 76 39 1 213 28 6 . 10 254 Missed 262 | . 28 4 32 11 . 84 9 1 . 6 87 Hits 473 | . 67 9 44 28 1 129 19 5 . 4 167 Melee 5 | . . . . 2 1 . 1 . . 1 . Projectile 468 | . 67 9 44 26 . 129 18 5 . 3 167 AOE 1 | . . . . . . . . . . . 1 Critical Strikes 14 | . . 1 1 3 1 1 . . . . 7 Part Disruptions 1 | . . . . 1 . . . . . . . Damage Taken 7188 | . 730 171 735 548 131 1573 224 76 . 450 2550 Core 1417 | . 128 35 37 61 . 192 29 . . 82 853 Absorbed by Shields . | . . . . . . . . . . . . Core Remaining (%) 68 | 100 . 34 93 . . . . . . 48 . Volleys Fired 365 | 22 79 . 73 32 8 84 16 6 . 5 40 Largest 2 | 2 2 . 2 2 2 2 2 2 . 2 2 Hottest 130 | 70 70 . 130 130 130 130 93 130 . 78 95 Shots Fired 598 | 35 151 . 104 49 16 131 29 11 . 9 63 Gun 253 | 35 151 . 28 . . . 15 . . 2 22 Cannon 270 | . . . 55 42 2 126 5 9 . 1 30 Launcher 68 | . . . 21 4 14 5 9 2 . 6 7 Special 7 | . . . . 3 . . . . . . 4 Kinetic 234 | 22 135 . 38 . . . 15 . . 2 22 Thermal 289 | 13 16 . 45 42 2 126 5 9 . 1 30 Explosive 22 | . . . . . 14 . . 2 . 6 . Electromagnetic 46 | . . . 21 4 . 5 9 . . . 7 Robot Hit Streak 18 | 5 17 . 7 8 11 18 6 2 . . 6 Robot Miss Streak 5 | 3 5 . 3 2 . 2 3 3 . 3 3 Penetration Max . | . . . . . . . . . . . . Secondary Targets 1 | . 1 . . . . . . . . . . Max Gunslinging Chain 1 | . 1 . . . . . . . . . . Shots Hit Robots 374 | 22 102 . 56 20 8 96 19 7 . 3 41 Core Hits 234 | 10 37 . 48 18 6 52 13 12 . 14 24 Critical Kills 1 | . . . . . . . . . . . 1 Critical Parts Destroyed 1 | . . . . . . 1 . . . . . Critical Strikes 7 | . 2 . 1 . . 1 1 . . . 2 Burn 3 | . 2 . 1 . . . . . . . . Destroy 2 | . . . . . . . 1 . . . 1 Smash 1 | . . . . . . 1 . . . . . Sever 1 | . . . . . . . . . . . 1 Melee Attacks 147 | . 21 . 9 10 . 75 . 3 . 5 24 Impact 47 | . . . 9 10 . 28 . . . . . Slashing 100 | . 21 . . . . 47 . 3 . 5 24 Piercing . | . . . . . . . . . . . . Sneak Attacks 37 | . 5 . 1 1 . 20 . . . 2 8 Combat Hostiles . | . . . . . . . . . . . . Follow-up Attacks . | . . . . . . . . . . . . Damage Inflicted 15663 | 278 1509 . 2595 915 2479 4188 680 533 . 717 1769 Guns 2277 | 278 1233 . 318 . . . 216 . . . 232 Cannons 3855 | . . . 650 563 55 2008 54 81 . . 444 Explosions 6354 | . . . 1532 265 2424 449 410 273 . 543 458 Melee 3146 | . 276 . 95 87 . 1731 . 179 . 174 604 Ramming 31 | . . . . . . . . . . . 31 Kinetic 2294 | 204 1123 . 519 . . . 216 . . . 232 Thermal 4454 | 74 110 . 887 563 55 2144 54 81 . . 486 Explosive 3240 | . . . . . 2424 . . 273 . 543 . Electromagnetic 2498 | . . . 1094 265 . 313 410 . . . 416 Impact 784 | . . . 95 87 . 602 . . . . . Slashing 2362 | . 276 . . . . 1129 . 179 . 174 604 Piercing . | . . . . . . . . . . . . Highest Corruption 14 | . . . . 1 5 5 3 3 3 14 1 Average Corruption 3 | . . . . 1 5 2 3 3 3 5 1 Corruption Purged 6 | . . . . 1 . 5 . . . . . Corruption Blocked 8 | . . . . . 8 . . . . . . Effects 88 | . . . . 4 4 41 21 7 1 10 . Message Errors 23 | . . . . . 1 14 5 2 . 1 . Matter Fused 21 | . . . . 3 . 7 6 2 . 3 . Heat Flow Errors 5 | . . . . . . 2 1 1 . 1 . Energy Discharges 10 | . . . . . . 3 4 1 1 1 . Parts Rejected 3 | . . . . . 2 1 . . . . . Parts Fused 4 | . . . . . . 2 1 1 . . . Data Loss (minor) 9 | . . . . 1 . 7 1 . . . . Data Loss (major) 5 | . . . . . 1 1 2 . . 1 . Misfires 4 | . . . . . . 2 1 . . 1 . Alerts 3 | . . . . . . 2 . . . 1 . Misdirections 1 | . . . . . . . . . . 1 . Overload Shots . | . . . . . . . . . . . . Overflow Damage 1123 | . 30 . 128 80 68 601 1 51 . 74 90 Projectiles 89 | . . . 32 12 . 36 . . . . 9 Explosions 187 | . . . 41 21 68 26 1 . . 20 10 Melee 847 | . 30 . 55 47 . 539 . 51 . 54 71 Knockbacks 10 | . . . 6 1 . 3 . . . . . Impact 3 | . . . . 1 . 2 . . . . . Kinetic 6 | . . . 6 . . . . . . . . Secondary 1 | . . . . . . 1 . . . . . Self-Inflicted Damage 297 | . . . 29 51 74 121 9 . . . 13 Shots 13 | . . . 2 2 4 4 1 . . . . Rammed 6 | . . . . . . . . . . . 6 Targets Rammed 6 | . . . . . . . . . . . 6 Kicked . | . . . . . . . . . . . . Crushed . | . . . . . . . . . . . . Highest Temperature 420 | 27 59 . 135 420 60 285 175 153 . 178 295 Average Temperature 68 | 8 18 . 35 122 15 88 29 54 . 63 78 Received Heat Transfer 2001 | . 336 18 297 112 . 267 78 45 . 27 821 Effects 5 | . . . . 1 . 4 . . . . . Energy Bleed 2 | . . . . 1 . 1 . . . . . Interference 3 | . . . . . . 3 . . . . . Siege Activations . | . . . . . . . . . . . . Martial Activations . | . . . . . . . . . . . . Shielding Activations . | . . . . . . . . . . . . Robots Disrupted 1 | . . . . . . . 1 . . . . Combat Hostiles 1 | . . . . . . . 1 . . . . Robots Corrupted 5 | . . . 1 1 . 3 . . . . . Combat Hostiles . | . . . . . . . . . . . . Parts Fried 20 | . . . 4 2 . 11 2 . . . 1 Impact Corruptions 17 | . . . 1 2 . 14 . . . . . Robots Melted . | . . . . . . . . . . . . Combat Hostiles . | . . . . . . . . . . . . Parts Melted 10 | 1 . . . 1 . 7 . . . . 1 Heat Transferred 6564 | 222 481 . 1489 703 74 2716 74 111 . . 694 Parts Sabotaged . | . . . . . . . . . . . . Parts Stolen . | . . . . . . . . . . . . Parts Stripped . | . . . . . . . . . . . . Power Chain Reactions 13 | . . . 9 . . 2 1 . . . 1 Alert | -11 -10 -10 -8 -7 -7 -7 -7 -7 -7 -6 -6 ------- Run | Yrd Mat Sub Mat Fac Was Fac Low Low Dat Pro Fac Maximum Alert Level 2 | . . . 2 1 . 2 . . . . . Low Security (%) 64 | 100 100 . 61 48 100 28 . . . . 100 Level 1 25 | . . . 14 51 . 57 . . . . . Level 2 9 | . . . 24 . . 13 . . . . . Level 3 . | . . . . . . . . . . . . Level 4 . | . . . . . . . . . . . . Level 5 . | . . . . . . . . . . . . High Security . | . . . . . . . . . . . . Max Security . | . . . . . . . . . . . . Peak Influence 509 | 15 104 . 471 281 94 509 . . . . 152 Initial 193 | . . . . 193 71 9 . . . . 12 Average 157 | 2 32 . 199 200 59 265 . . . . 38 Influence Increases 3762 | 45 485 . 826 342 53 1169 140 90 . 60 552 Destroy 0b10 Robot/C 1760 | . 280 . 480 180 . 420 120 80 . 60 140 Destroy 0b10 Robot/NC 355 | 45 35 . 60 25 . 140 . 10 . . 40 Destroy Leader 364 | . 64 . 110 32 . 106 20 . . . 32 Successful Hack 158 | . 11 . 20 60 . 49 . . . . 18 Disable Machine 240 | . . . 75 . . 105 . . . . 60 Destroy Structure 285 | . 5 . 81 15 53 109 . . . . 22 Partial Spotted 15 | . 15 . . . . . . . . . . Lose Combat Pursuer 585 | . 75 . . 30 . 240 . . . . 240 Influence Decreases 3651 | 45 385 100 399 566 242 681 642 90 . 40 461 Entered New Map 614 | . . 48 . 234 132 5 187 . . . 8 Time Decay 2689 | 45 365 40 399 302 100 556 455 90 . 40 297 Lost Part 328 | . 20 12 . 30 10 100 . . . . 156 Lost Ally 20 | . . . . . . 20 . . . . . Squads Dispatched 22 | . 3 . 2 4 . 9 . . . . 4 Investigation 3 | . 1 . 1 1 . . . . . . . Extermination 8 | . . . . 1 . 5 . . . . 2 Reinforcement 7 | . 2 . 1 1 . 1 . . . . 2 Assault . | . . . . . . . . . . . . Garrison 4 | . . . . 1 . 3 . . . . . Intercept . | . . . . . . . . . . . . Searches Triggered . | . . . . . . . . . . . . Construction Impeded 3 | . . . . 1 . 1 . . . . 1 Haulers Reinforced . | . . . . . . . . . . . . Active Scanning Responses . | . . . . . . . . . . . . Cargo Convoy Interrupts . | . . . . . . . . . . . . Stealth | -11 -10 -10 -8 -7 -7 -7 -7 -7 -7 -6 -6 --------- Run | Yrd Mat Sub Mat Fac Was Fac Low Low Dat Pro Fac Distress Signals 5 | . 1 . 2 1 . . . . . . 1 Communications Jammed 21 | . . . . . . . . . . . 21 Distress Signals 21 | . . . . . . . . . . . 21 Times Spotted 177 | . 28 3 33 16 4 44 7 6 . 4 32 Peak Tracking Total 7 | . 4 3 7 4 4 6 4 5 . 4 6 Tactical Retreats 27 | . 4 . . 2 1 10 . . . . 10 Traps | -11 -10 -10 -8 -7 -7 -7 -7 -7 -7 -6 -6 ------- Run | Yrd Mat Sub Mat Fac Was Fac Low Low Dat Pro Fac Traps Triggered 14 | . 2 . 2 6 . 3 . . . . 1 Indirectly 6 | . . . 1 4 . . . . . . 1 Trap Hack Attempts . | . . . . . . . . . . . . Triggered . | . . . . . . . . . . . . Disarmed . | . . . . . . . . . . . . Reprogrammed . | . . . . . . . . . . . . Reused . | . . . . . . . . . . . . Traps Extracted . | . . . . . . . . . . . . Installed . | . . . . . . . . . . . . Triggered . | . . . . . . . . . . . . Machines | -11 -10 -10 -8 -7 -7 -7 -7 -7 -7 -6 -6 ---------- Run | Yrd Mat Sub Mat Fac Was Fac Low Low Dat Pro Fac Machines Disabled 16 | . . . 5 . . 7 . . . . 4 Max in Single Turn 2 | . . . 2 . . 1 . . . . 1 Garrison Access 2 | . . . . . . 1 . . . . 1 Machines Repaired . | . . . . . . . . . . . . Machines Dismantled . | . . . . . . . . . . . . Machines Sabotaged . | . . . . . . . . . . . . Overloaded Fab Kills . | . . . . . . . . . . . . Hacking | -11 -10 -10 -8 -7 -7 -7 -7 -7 -7 -6 -6 --------- Run | Yrd Mat Sub Mat Fac Was Fac Low Low Dat Pro Fac Machines Accessed 42 | . 6 . 10 4 . 13 1 1 3 . 4 Terminals 30 | . 5 . 9 3 . 9 . 1 . . 3 Fabricators 1 | . . . . . . 1 . . . . . Repair Stations 1 | . . . . . . 1 . . . . . Recycling Units 1 | . 1 . . . . . . . . . . Scanalyzers 1 | . . . 1 . . . . . . . . Garrison Access 4 | . . . . 1 . 2 . . . . 1 Total Hacks 120 | . 15 . 34 8 . 27 1 4 22 . 9 Successful 73 | . 7 . 19 3 . 10 1 4 22 . 7 Failed 46 | . 8 . 14 5 . 17 . . . . 2 Catastrophic 7 | . . . 1 1 . 4 . . . . 1 Database Lockouts 1 | . . . 1 . . . . . . . . Manual 49 | . 6 . 20 3 . 16 . . . . 4 Terminals 78 | . 14 . 26 7 . 19 . 4 . . 8 Fabricators 2 | . . . . . . 2 . . . . . Repair Stations 3 | . . . . . . 3 . . . . . Recycling Units 1 | . 1 . . . . . . . . . . Scanalyzers 8 | . . . 8 . . . . . . . . Garrison Access 5 | . . . . 1 . 3 . . . . 1 Terminal Hacks 48 | . 5 . 7 1 . 4 1 4 22 . 4 Record 10 | . . . . . . . . 4 6 . . Part Schematic 11 | . . . . . . . . . 10 . 1 Robot Schematic 3 | . . . . . . . . . 3 . . Prototype ID Bank 3 | . . . . . . . . . 3 . . Open Door 1 | . . . . . . . 1 . . . . Level Access Points 1 | . . . 1 . . . . . . . . Branch Access Points 2 | . . . 1 . . 1 . . . . . Terminal Index 4 | . 1 . 1 . . 1 . . . . 1 Alert Level 1 | . 1 . . . . . . . . . . Locate Traps 4 | . 1 . 1 1 . 1 . . . . . Recall Investigation 2 | . 1 . 1 . . . . . . . . Recall Extermination 1 | . . . . . . 1 . . . . . Hauler Manifests 1 | . 1 . . . . . . . . . . Zone Layout 4 | . . . 2 . . . . . . . 2 Fabricator Hacks 1 | . . . . . . 1 . . . . . Load Schematic 1 | . . . . . . 1 . . . . . Repair Station Hacks 1 | . . . . . . 1 . . . . . Scan Component 1 | . . . . . . 1 . . . . . Recycling Unit Hacks 1 | . 1 . . . . . . . . . . Report Inventory 1 | . 1 . . . . . . . . . . Scanalyzer 7 | . . . 7 . . . . . . . . Insert Component 3 | . . . 3 . . . . . . . . Analyze 3 | . . . 3 . . . . . . . . Retrieve Study 1 | . . . 1 . . . . . . . . Garrison Access Hacks 2 | . . . . . . 1 . . . . 1 Seal Access 2 | . . . . . . 1 . . . . 1 Unauthorized Hacks 13 | . 1 . 5 2 . 3 . . . . 2 Terminals 13 | . 1 . 5 2 . 3 . . . . 2 Track 6 | . . . 3 1 . 1 . . . . 1 Assimilate 2 | . . . . . . 2 . . . . . Botnet 4 | . 1 . 2 1 . . . . . . . Operators 1 | . . . . . . . . . . . 1 Fabricators . | . . . . . . . . . . . . Repair Stations . | . . . . . . . . . . . . Recycling Units . | . . . . . . . . . . . . Scanalyzers . | . . . . . . . . . . . . Garrison Access . | . . . . . . . . . . . . Data Cores Recovered . | . . . . . . . . . . . . Used . | . . . . . . . . . . . . Hacking Detections 35 | . 5 . 10 4 . 12 . 1 . . 3 Full Trace Events 1 | . . . . 1 . . . . . . . Feedback Events . | . . . . . . . . . . . . Feedback Blocked . | . . . . . . . . . . . . Robot Schematics Acquired 3 | . . . . . . . . . 3 . . Robots Built . | . . . . . . . . . . . . Authchips . | . . . . . . . . . . . . Time . | . . . . . . . . . . . . Total Robot Build Rating . | . . . . . . . . . . . . Part Schematics Acquired 14 | . . . 3 . . . . . 10 . 1 Parts Built . | . . . . . . . . . . . . Authchips . | . . . . . . . . . . . . Time . | . . . . . . . . . . . . Total Part Build Rating . | . . . . . . . . . . . . Part Studies Acquired 1 | . . . 1 . . . . . . . . Parts Repaired . | . . . . . . . . . . . . Time . | . . . . . . . . . . . . Parts Recycled . | . . . . . . . . . . . . Recycled Matter . | . . . . . . . . . . . . Retrieved Matter . | . . . . . . . . . . . . Retrieved Components . | . . . . . . . . . . . . Parts Scanalyzed 3 | . . . 3 . . . . . . . . Part Schematics Acquired 3 | . . . 3 . . . . . . . . Parts Damaged . | . . . . . . . . . . . . Bothacking | -11 -10 -10 -8 -7 -7 -7 -7 -7 -7 -6 -6 ------------ Run | Yrd Mat Sub Mat Fac Was Fac Low Low Dat Pro Fac Used RIF Installer . | . . . . . . . . . . . . Robots Hacked 2 | . . . . 1 . . . . . . 1 Non-combat 2 | . . . . 1 . . . . . . 1 Combat . | . . . . . . . . . . . . Robot Hacks Applied 2 | . . . . 1 . . . . . . 1 find_chute 2 | . . . . 1 . . . . . . 1 Relay Couplers Released 3 | . . . . 3 . . . . . . . Programmers 3 | . . . . 3 . . . . . . . Fabnet Peak Effective % . | . . . . . . . . . . . . Robots Rewired . | . . . . . . . . . . . . Allies Hacked . | . . . . . . . . . . . . Hacks Repelled . | . . . . . . . . . . . . Allies | -11 -10 -10 -8 -7 -7 -7 -7 -7 -7 -6 -6 -------- Run | Yrd Mat Sub Mat Fac Was Fac Low Low Dat Pro Fac Total Allies 2 | . . . . . . 2 . . . . . Largest Group 2 | . . . . . . 2 . . . . . Highest-Rated Group 20 | . . . . . . 20 . . . . . Highest-Rated Ally 10 | . . . . . . 10 . . . . . Total Orders . | . . . . . . . . . . . . Ally Attacks . | . . . . . . . . . . . . Total Damage . | . . . . . . . . . . . . Kills . | . . . . . . . . . . . . Allies Corrupted . | . . . . . . . . . . . . Allies Melted . | . . . . . . . . . . . . Intel | -11 -10 -10 -8 -7 -7 -7 -7 -7 -7 -6 -6 ------- Run | Yrd Mat Sub Mat Fac Was Fac Low Low Dat Pro Fac Active Infowar (turns) 9259 | 7 1460 129 1599 670 206 2368 1165 427 97 362 769 Optics 3318 | . . . . . . 1347 1165 427 97 282 . Sensors 5681 | . . . 1043 670 206 1773 1132 427 97 282 51 Traps 875 | . . . 471 404 . . . . . . . Seismic 2152 | 7 1460 129 556 . . . . . . . . Machine Analysis 6064 | . . . . 670 206 2368 1165 427 97 362 769 Jamming 1146 | . . . . . . 595 33 . . . 518 Robot Analysis Total . | . . . . . . . . . . . . Derelict Logs Recovered 3 | . . . . . . . 2 1 . . . Drone Launches . | . . . . . . . . . . . . Drone Recoveries . | . . . . . . . . . . . . Exploration | -11 -10 -10 -8 -7 -7 -7 -7 -7 -7 -6 -6 ------------- Run | Yrd Mat Sub Mat Fac Was Fac Low Low Dat Pro Fac Turns Passed 9690 | 220 1460 129 1599 670 206 2380 1165 427 97 362 975 Spaces Moved 6527 | 137 650 108 803 438 167 1424 1171 417 102 284 826 Core 361 | 2 . . . . . . . . . . 359 Treads 221 | . 220 . 1 . . . . . . . . Legs 1 | . . . . . . . . . . . 1 Wheels 5930 | 135 430 108 802 438 167 1424 1171 417 102 284 452 Hover . | . . . . . . . . . . . . Flight 14 | . . . . . . . . . . . 14 Fastest Speed 40 | 50 95 110 100 106 90 90 95 95 95 95 40 Average Speed 107 | 88 164 116 116 120 95 103 95 95 95 99 86 Slowest Speed 240 | 95 240 140 225 175 125 125 95 95 95 115 200 Overloaded Moves . | . . . . . . . . . . . . Propulsion Burnouts . | . . . . . . . . . . . . Robots Hopped 2 | . . . . . . . . . . . 2 Potential Cave-ins . | . . . . . . . . . . . . Cave-ins Triggered 1 | . . . . . . . . . . 1 . Exploration Rate (%) 51 | 6 98 13 71 17 71 32 95 61 79 54 23 Regions Visited 11 Branch Regions 5 Pre-discovered Areas 1 | . . . . . . . . . 1 . . Known Exits Taken 6 | . . . 1 . . 1 1 1 1 1 . Unknown Exits Taken 3 | 1 1 1 . . . . . . . . . Scrap Searched 7 | . . . . . . . 4 3 . . . Spaces Dug 104 | . 3 . 21 12 . 54 . . . 3 11 Terrain Destroyed 399 | . 3 . 88 15 108 110 8 16 . 29 22 Melee 71 | . 3 . 7 9 . 39 . . . 2 11 Projectile 65 | . . . 16 6 . 30 3 2 . 1 7 AOE 263 | . . . 65 . 108 41 5 14 . 26 4 Terrain Rammed . | . . . . . . . . . . . . Walls Destroyed . | . . . . . . . . . . . . Machines Disabled . | . . . . . . . . . . . . Actions | -11 -10 -10 -8 -7 -7 -7 -7 -7 -7 -6 -6 --------- Run | Yrd Mat Sub Mat Fac Was Fac Low Low Dat Pro Fac Total 8332 | 196 842 110 1348 516 192 2077 1195 430 102 346 978 Wait 928 | 23 55 . 357 . 9 393 . . . 46 45 Move 6513 | 136 649 107 802 438 166 1423 1170 416 101 283 822 Hop 2 | . . . . . . . . . . . 2 Pick Up 83 | 8 9 . 25 12 . 18 3 1 . . 7 Fast Attach 37 | 7 4 . 5 2 2 12 . . . . 5 Attach 41 | . 2 2 9 5 1 8 . . . 3 11 Detach 7 | . . . 5 . . 1 . . . . 1 Swap 116 | . 18 1 32 9 5 29 3 3 . 4 12 Drop 71 | . 5 . 31 8 1 18 3 1 1 . 3 Fire 365 | 22 79 . 73 32 8 84 16 6 . 5 40 Melee 147 | . 21 . 9 10 . 75 . 3 . 5 24 Ram 6 | . . . . . . . . . . . 6 Kick . | . . . . . . . . . . . . Crush . | . . . . . . . . . . . . Escape Stasis 16 | . . . . . . 16 . . . . . Rewire . | . . . . . . . . . . . . Trap . | . . . . . . . . . . . . Miscellaneous . | . . . . . . . . . . . . Route ------- -11/Scrapyard -10/Materials (discovered 6 exits: [*Mat x3] / [*Min x2] / [*Sub]) -10/Subcaves -8/Materials (discovered 3 exits: *Fac x3) -7/Factory -7/Waste -7/Factory (discovered 3 exits: *Fac / *Low x2) -7/Lower Caves -7/Lower Caves -7/Data Miner -6/Proximity Caves -6/Factory (discovered 1 exit: Fac) History --------- Turn | Location | Event 37 | -11/Scrapyard | Discovered new exit (range 15) 221 | -11/Scrapyard | Entered Materials 299 | -10/Materials | Discovered new exit (range 11) 303 | -10/Materials | Build established: Mutant 404 | -10/Materials | Discovered new exit (range 16) 454 | -10/Materials | Discovered new exit (range 16) 1087 | -10/Materials | Discovered new exit (range 7) 1498 | -10/Materials | Discovered new exit (range 15) 1551 | -10/Materials | Core integrity fell below 50% 1668 | -10/Materials | Discovered new exit (range 10) 1681 | -10/Materials | Entered Subcaves 1788 | -10/Subcaves | Discovered new exit (range 15) 1810 | -10/Subcaves | Entered Materials 1810 | -8/Materials | Evolved 4 slots: Propulsion x2, Utility x2 1834 | -8/Materials | Lost 3 parts (2n1w) 2111 | -8/Materials | Build established: Scavenger-Mutant 2273 | -8/Materials | Discovered new exit (range 3) 2514 | -8/Materials | Identified exit to Factory 3203 | -8/Materials | Build established: Mutant 3342 | -8/Materials | Central database locked down 3409 | -8/Materials | Entered Factory 3409 | -7/Factory | Evolved 2 slots: Utility x2 3606 | -7/Factory | Assembled infested ambush trap array 3617 | -7/Factory | Garrison activated, responded to threat 3894 | -7/Factory | Build established: Skirmisher 3977 | -7/Factory | Discovered new exit (range 16) 4079 | -7/Factory | Sucked down chute 4079 | -7/Factory | Entered Waste 4094 | -7/Waste | EMP discharged 4113 | -7/Waste | Spotted C-40 Crusher 4115 | -7/Waste | Spotted C-40 Crusher 4116 | -7/Waste | Destroyed C-40 Crusher 4116 | -7/Waste | Destroyed C-40 Crusher 4120 | -7/Waste | Spotted C-40 Crusher 4123 | -7/Waste | Spotted C-40 Crusher 4147 | -7/Waste | Spotted C-40 Crusher 4151 | -7/Waste | Destroyed C-40 Crusher 4168 | -7/Waste | Crushed by Compactor (1 part destroyed, 1 dropped) 4194 | -7/Waste | EMP discharged 4262 | -7/Waste | Discovered new exit (range 12) 4284 | -7/Waste | Identified exit to Factory 4285 | -7/Waste | Entered Factory 4818 | -7/Factory | Discovered new exit (range 8) 4824 | -7/Factory | Identified exit to Factory 5122 | -7/Factory | Lost 3 parts (2n1u) 5536 | -7/Factory | Identified exit to Lower Caves 5771 | -7/Factory | Garrison activated, responded to threat 6336 | -7/Factory | Build established: Scavenger-Mutant 6641 | -7/Factory | Build established: Mutant 6665 | -7/Factory | Entered Lower Caves 7026 | -7/Lower Caves | Encountered a Warlord checkpoint 7179 | -7/Lower Caves | Build established: Skirmisher 7231 | -7/Lower Caves | Attracted the attention of an 0b10 checkpoint 7343 | -7/Lower Caves | Identified exit to Lower Caves 7358 | -7/Lower Caves | Learned location of 1 exit from Factory 7798 | -7/Lower Caves | Found DRS Beacon 7830 | -7/Lower Caves | Entered another Lower Caves area 7851 | -7/Lower Caves | Encountered a Warlord checkpoint 7867 | -7/Lower Caves | Attracted the attention of an 0b10 base 7907 | -7/Lower Caves | Learned 6 Upper Caves zone layouts 7907 | -7/Lower Caves | Learned Factory garrison access intel 8023 | -7/Lower Caves | Identified exit to Data Miner 8257 | -7/Lower Caves | Entered Data Miner 8258 | -7/Data Miner | Discovered new exit (range 6) 8272 | -7/Data Miner | Met Data Miner 8299 | -7/Data Miner | Learned location of Section 7 (-2) 8299 | -7/Data Miner | Acquired the access code to Warlord's prototype stash 8314 | -7/Data Miner | Received God Mode back door access code from Data Miner 8349 | -7/Data Miner | Identified exit to Proximity Caves 8354 | -7/Data Miner | Entered Proximity Caves 8468 | -6/Proximity Caves | Build established: Assassin 8636 | -6/Proximity Caves | Crushed by falling debris 8636 | -6/Proximity Caves | System corruption reached 10% 8667 | -6/Proximity Caves | Lost 4 parts (2n2u) 8699 | -6/Proximity Caves | Discovered exit to Factory (range 15) 8710 | -6/Proximity Caves | Core integrity fell below 50% 8716 | -6/Proximity Caves | Entered Factory 8716 | -6/Factory | Evolved 2 slots: Utility x2 8717 | -6/Factory | Identified exit to Factory 8718 | -6/Factory | Loaded intel: 4 garrison access locations 9104 | -6/Factory | Build established: Hacker-Mutant 9278 | -6/Factory | Spotted B-75 Beast 9335 | -6/Factory | Lost 4 parts (1n2u1w) 9417 | -6/Factory | Lost 3 parts (1p1n1u) 9485 | -6/Factory | Released all parts (6) 9515 | -6/Factory | Lost 5 parts (3n1u1w) 9598 | -6/Factory | Core integrity fell below 50% 9669 | -6/Factory | Core integrity fell below 20% 9691 | -6/Factory | Destroyed by G-50 Soldier with Heavy Laser Last Messages --------------- 09593_ ALERT: Construction progress impeded, dispatching reinforcements to local area. 09594_ Slammed into U-05 Engineer. 09597_ U-05 Engineer builds a Wall. 09640_ Slammed into T-07 Excavator. 09647_ K-01 Serf cleans the Assembly Bed. 09652_ Slammed into S-27 Virus. 09652_ K-01 Serf cleans the Assembly Bed. 09653_ Slammed into S-27 Virus. 09653_ Destabilizing: System corrupted (+1). 09669_ Acquired Hvy. Plasma Cannon. 09671_ S-27 Virus destroyed. 09675_ Seismic Detector melted. 09675_ T-07 Excavator destroyed. 09680_ Critical hit (Burn: +37). 09683_ Dropped Hvy. Plasma Cannon. 09684_ Acquired Nuclear Pulse Thruster. 09691_ ALERT: Potential suspicious activity detected, Programmers report to Factory Zone 9Q. Map ----- +----------------------------------------------------+ | ?????????????????????????"""???# ""???? ????? | | ?????????????????????????"""???# """""" ?????? | | ?????????????????????????"""???# """""" #?????? | | ???????????????????????????????# """""" #?????? | | ????????????????????????????#+## #?????? | | ????????????????????????????# ## #?????? | | ????????????????????????????# ## #?????? | | ?????????????????????######## ## #?????? | | ?????????????????????# # " " #?????? | | ?????????????????????#""" # ""G"" #?????? | | ?????????????????????#"Y %/% +?????? | | ?????????????????????#""" # [ #?????? | | ?????????????????????# # ##?????? | | ?????????????????????# # ### #??????? | | ?????????????????????######## #?# #??????? | | ????????????????????????????# ## #??????? | | ????????????????????????????# #####+## ##%#??????? | | ????????????????????????????# #??????? ## #??????? | | ????????????????????????????# #??????? ## #??????? | | ????????????????????????????# #??????? ## ######## | | ????????????????????????????# #??????? ## / | | ????????????????????????????# #??????? ?###### """ | | ????????????????????????????# #??????? ??????# ""R | | ????????????????????????????# #??????????????# "" | | ????????? ########### #??????????????# | | ????????? @[gs #??????????????#! | | ????????? ########g##;#??????????????####+ | | ??????????????????????# * g*#?????????????????# | | ??????????????????????# g ##????????????????# | | ??????????????????????#] = ;#????????????????# | | ??????????????????????# ##????????????????+ | | ??????????????????????# =! #?????????????????# | | ??????????????????????# == #??????""?????????# | | ??????????????????????# =! #??????T?????????? | | ??????????????????????# #?????????????????## | | ??????????????????????# "F "" #??????????????????? | | ??????????????????????# """"" #??????????????????? | | ??????????????????????# """"" #??????????????????? | | ??????????????????????#########??????????????????? | | ?????????????????????????????????????????????????? | | ?????????????????????????????????????????????????? | | ?????????????????????????????????????????????????? | | ?????????????????????????????????????????????????? | | ?????????????????????????????????????????????????? | | | | | | | | | | | | | +----------------------------------------------------+ Best States ------------- Heat Dissipation 37 Energy Generation 16 Energy Capacity 290 Matter Stores 300 Matter Capacity 300 Sight Range 20 Robot Scan Range 15 Terrain Scan Density 10 Jamming Range 12 Additional Mass Support 9 Corruption Block 8 Armor Coverage 450 Evasion (%) 62 Recoil Reduction 2 Particle Charging 20 Offensive Hacking 21 Item Schematics ----------------- Hacking Suite | -8/Materials | Scanalyzed Arm. Wheel | -8/Materials | Scanalyzed Trap Scanner | -8/Materials | Scanalyzed Lgt. Regenerative Plating | -7/Data Miner | Free Combat Drone Bay | -7/Data Miner | Free Cld. Aerolev Unit | -7/Data Miner | Free Exp. Targeting Computer | -7/Data Miner | Free Com. Ion Cannon | -7/Data Miner | Free Thunder Leg | -7/Data Miner | Free Imp. Corruption Screen | -7/Data Miner | Free Adv. Plasma Cannon | -7/Data Miner | Free Hpw. Shock Rifle | -7/Data Miner | Free Arm. Medium Treads | -7/Data Miner | Free Centrium Wheel | -6/Factory | Hacked Robot Schematics ------------------ A-15 Conveyor | -7/Data Miner | Free X-62 Marksman | -7/Data Miner | Free M-28 Smith | -7/Data Miner | Free Fabricated ------------ Nothing Repaired ---------- Nothing Studied --------- Wheel | -8/Materials | Hacked Alien Tech Used ----------------- None Achievements -------------- We Love MA Challenges ------------ None Game ------ Seed MakeshiftSurveybotInterface Manual? 0 Play Time 03:40:09 Cumulative 65.8 hours Start 2026.01.19 @ 17:12:08 End 2026.01.19 @ 22:29:26 Sessions 6 Manual Loads 0 Difficulty Rogue Special Mode None Game No. 19 Rogue 19 Adventurer 0 Explorer 0 Win Type - Total 0 Types 0/0/0/0/0/0/0/0/0/0 Lore% 25 Gallery% 35 Achievement% 27 Wizard Run 0 Options --------- Layout 2 ASCII 0 Keyboard 0 Movement Mouse Keybinds 0 Fullscreen 1 Font 32/SmallcapsGlow Map View 50x44 Zoom Use 11% Tactical HUD 1 Map Filters NONE Filters NONE Steam 1 RUN: 591b20fa-2ef6-417f-a54b-5f0818d751e4